bitfinex/quotes_BTCUSD_20250102
["timestamp","ask_amount","ask_price","bid_price","bid_amount"]
[1735854809793,0.18507238,97289.0,97277.0,0.85788432]
[1735854810056,0.00013462,97278.0,97277.0,2.38991512]
[1735854810252,0.00013462,97278.0,97277.0,2.39313326]
[1735854811308,0.00013462,97278.0,97277.0,2.73363501]
[1735854812071,0.00013462,97278.0,97277.0,3.00972159]
[1735854812274,8.55e-05,97292.0,97279.0,0.2]
[1735854812473,8.55e-05,97292.0,97279.0,0.53078632]
[1735854812885,8.55e-05,97292.0,97279.0,2.03400446]
[1735854813525,8.55e-05,97292.0,97279.0,2.04300446]
[1735854814125,8.55e-05,97292.0,97279.0,2.61326994]
[1735854814874,0.0823,97290.0,97279.0,0.69046994]
[1735854815075,0.0823,97290.0,97279.0,0.64441264]
[1735854815488,0.0823,97290.0,97279.0,0.6411945]
[1735854815686,0.0823,97290.0,97279.0,0.6371945]
[1735854815889,0.0823,97290.0,97279.0,0.6281945]
[1735854816107,0.0823,97290.0,97279.0,0.11398632]
[1735854816435,0.0823,97290.0,97279.0,0.10898632]
[1735854816655,0.0823,97290.0,97279.0,0.11198632]
[1735854818218,0.0823,97290.0,97279.0,0.10698632]
[1735854818427,0.0823,97290.0,97279.0,0.10798632]
[1735854818847,0.0823,97290.0,97279.0,1.60798632]
[1735854822001,0.0823,97290.0,97279.0,0.10798632]
[1735854822478,0.0823,97290.0,97279.0,1.60798632]
[1735854822710,8.55e-05,97292.0,97279.0,1.78698632]
[1735854822911,8.55e-05,97292.0,97279.0,1.88698632]
[1735854823114,8.55e-05,97292.0,97279.0,1.89020278]
[1735854823704,8.55e-05,97292.0,97290.0,0.20557]
[1735854823902,0.00013461,97292.0,97291.0,0.10398632]
[1735854824889,0.00113461,97292.0,97291.0,0.10398632]
[1735854825290,0.00013461,97292.0,97291.0,0.10398632]
[1735854825718,0.00213461,97292.0,97291.0,0.10398632]
[1735854826163,0.00113461,97292.0,97291.0,0.10398632]
[1735854826340,0.00213461,97292.0,97291.0,0.10398632]
[1735854828758,0.00213461,97292.0,97291.0,0.10720278]
[1735854833541,0.00213461,97292.0,97291.0,1.60720278]
[1735854844498,0.00213461,97292.0,97291.0,1.63926617]
[1735854844883,0.205495,97326.0,97291.0,1.63926617]
[1735854845087,0.0768,97309.0,97292.0,0.03206339]
[1735854845225,0.0768,97309.0,97299.0,0.205551]
[1735854845435,0.0768,97309.0,97299.0,0.30953732]
[1735854845637,0.0768,97309.0,97299.0,0.31275378]
[1735854846007,0.0768,97309.0,97299.0,0.30953732]
[1735854846294,0.0768,97309.0,97299.0,0.31275348]
[1735854846568,0.0010855,97300.0,97299.0,0.31275348]
[1735854847776,0.0010855,97300.0,97299.0,0.30953732]
[1735854847985,0.0010855,97300.0,97299.0,0.31275348]
[1735854847986,0.0020855,97300.0,97299.0,0.31275348]
[1735854852337,0.0020855,97300.0,97299.0,0.32292471]
[1735854852803,0.1254855,97300.0,97299.0,0.00321616]
[1735854853224,0.13061017,97300.0,97299.0,0.00321616]
[1735854853555,0.13061017,97300.0,97299.0,0.00421616]
[1735854857142,0.13061017,97300.0,97299.0,0.001]
[1735854857849,0.078,97298.0,97295.0,0.09187755]
[1735854858076,0.078,97298.0,97283.0,0.09187755]
[1735854858319,0.20556,97295.0,97286.0,0.30956432]
[1735854858698,0.20556,97295.0,97287.0,0.00321693]
[1735854858923,0.0050919,97294.0,97287.0,0.00321693]
[1735854859281,0.0050919,97294.0,97288.0,0.00321693]
[1735854859716,0.0050919,97294.0,97286.0,0.30956432]
[1735854860297,0.0050919,97294.0,97286.0,0.51514232]
[1735854860508,0.001,97294.0,97290.0,0.205569]
[1735854860698,0.00509184,97293.0,97290.0,0.205569]
[1735854861104,0.001,97294.0,97290.0,0.205569]
[1735854861514,0.00509181,97293.0,97290.0,0.205569]
[1735854861901,0.078,97296.0,97290.0,0.205569]
[1735854862056,0.002,97294.0,97290.0,0.205569]
[1735854862252,0.001,97294.0,97290.0,0.205569]
[1735854862600,0.00509171,97293.0,97287.0,0.205577]
[1735854862781,0.00709171,97293.0,97287.0,0.205577]
[1735854862987,0.003,97293.0,97287.0,0.205577]
[1735854863339,0.002,97293.0,97287.0,0.205577]
[1735854863753,0.003,97293.0,97287.0,0.205577]
[1735854863977,0.001,97293.0,97287.0,0.205577]
[1735854865503,0.002,97293.0,97287.0,0.205577]
[1735854869664,0.002,97293.0,97290.0,0.205569]
[1735854870687,0.001,97293.0,97290.0,0.205569]
[1735854870889,0.003,97293.0,97290.0,0.205569]
[1735854871727,0.002,97293.0,97290.0,0.205569]
[1735854872504,0.003,97293.0,97290.0,0.205569]
[1735854874904,0.003,97293.0,97290.0,0.2057398]
[1735854875129,0.0030854,97293.0,97290.0,0.2057398]
[1735854876636,0.0030854,97293.0,97292.0,0.205566]
[1735854876790,0.0030854,97293.0,97292.0,0.30955232]
[1735854877671,8.54e-05,97293.0,97292.0,0.30955232]
[1735854877911,0.0020854,97293.0,97292.0,0.31276883]
[1735854878115,0.0050854,97293.0,97292.0,0.31276883]
[1735854878353,0.0020854,97293.0,97292.0,0.31276883]
[1735854878558,8.54e-05,97293.0,97292.0,0.31276883]
[1735854880548,0.0796854,97293.0,97292.0,0.00321651]
[1735854881567,0.0796854,97293.0,97290.0,0.2057398]
[1735854881772,0.0796854,97293.0,97291.0,0.10398632]
[1735854882225,0.0796854,97293.0,97292.0,0.205566]
[1735854882546,8.54e-05,97293.0,97292.0,0.30955232]
[1735854882748,8.54e-05,97293.0,97292.0,0.312769]
[1735854885063,8.54e-05,97293.0,97292.0,0.30955232]
[1735854885288,8.54e-05,97293.0,97292.0,0.31276886]
[1735854891265,8.54e-05,97293.0,97292.0,0.32328605]
[1735854893306,8.54e-05,97293.0,97292.0,0.4151636]
[1735854893986,8.54e-05,97293.0,97292.0,0.40464641]
[1735854894366,8.54e-05,97293.0,97292.0,0.31276886]
[1735854895297,8.54e-05,97293.0,97292.0,0.40464641]
[1735854897325,8.54e-05,97293.0,97292.0,0.31276886]
[1735854898281,8.54e-05,97293.0,97292.0,0.45058518]
[1735854899203,8.54e-05,97293.0,97292.0,0.79162601]
[1735854899404,8.54e-05,97293.0,97292.0,0.83751612]
[1735854899989,8.54e-05,97293.0,97292.0,0.83768692]
[1735854900912,8.54e-05,97293.0,97292.0,0.65398049]
[1735854904467,8.54e-05,97293.0,97292.0,2.15398049]
[1735854906354,8.54e-05,97293.0,97292.0,2.22948049]
[1735854906780,8.54e-05,97293.0,97292.0,2.49247381]
[1735854906980,8.54e-05,97293.0,97292.0,2.51279907]
[1735854907446,8.54e-05,97293.0,97292.0,2.48072512]
[1735854907852,0.0426273,97314.0,97292.0,2.25483386]
[1735854908060,0.00049122,97313.0,97307.0,0.205534]
[1735854908253,0.00049122,97313.0,97308.0,0.10398632]
[1735854908666,0.00049122,97313.0,97309.0,0.00321654]
[1735854908864,0.00049122,97313.0,97310.0,0.10398632]
[1735854909261,0.00049122,97313.0,97311.0,0.00321654]
[1735854909489,0.00049122,97313.0,97311.0,0.10720286]
[1735854909741,0.00510017,97312.0,97311.0,0.10720286]
[1735854909916,0.00510017,97312.0,97311.0,0.10398632]
[1735854910113,0.00449122,97313.0,97311.0,0.10398632]
[1735854910274,0.00049122,97313.0,97311.0,0.10398632]
[1735854910474,0.00510016,97312.0,97311.0,0.10498632]
[1735854910946,0.00849122,97313.0,97311.0,0.10498632]
[1735854911150,0.00449122,97313.0,97311.0,0.10720248]
[1735854911300,0.00511163,97312.0,97311.0,0.10820248]
[1735854911644,0.004,97312.0,97311.0,0.10820248]
[1735854912648,0.008,97312.0,97311.0,0.10720248]
[1735854912855,0.0040855,97312.0,97311.0,0.10720248]
[1735854913053,0.0080855,97312.0,97311.0,0.10820248]
[1735854913249,0.0040855,97312.0,97311.0,0.10820248]
[1735854913450,0.0080855,97312.0,97311.0,0.10820248]
[1735854921216,0.0080855,97312.0,97311.0,0.31372848]
[1735854921420,0.0080855,97312.0,97311.0,1.81372848]
[1735854922378,0.0080855,97312.0,97311.0,1.82403069]
[1735854923055,0.0080855,97312.0,97311.0,2.16457391]
[1735854924528,0.0080855,97312.0,97311.0,2.16474491]
[1735854925071,0.0080855,97312.0,97311.0,2.30310678]
[1735854925866,0.0080855,97312.0,97311.0,1.82420169]
[1735854926406,0.0080855,97312.0,97311.0,0.32420169]
[1735854928730,0.0080855,97312.0,97311.0,0.32098553]
[1735854928959,0.0080855,97312.0,97311.0,0.32420129]
[1735854930441,0.0080855,97312.0,97311.0,1.82420129]
[1735854932497,0.0080855,97312.0,97311.0,1.81389908]
[1735854932665,0.0080855,97312.0,97311.0,0.31389908]
[1735854933265,0.0080855,97312.0,97311.0,0.40606774]
[1735854934231,0.0080855,97312.0,97311.0,0.31389908]
[1735854934655,0.0080855,97312.0,97311.0,0.31068332]
[1735854934974,0.0080855,97312.0,97311.0,0.31389923]
[1735854936915,0.0080855,97312.0,97311.0,1.81389923]
[1735854937137,0.0080855,97312.0,97311.0,1.60837323]
[1735854938078,0.0080855,97312.0,97311.0,0.31389923]
[1735854940661,0.0080855,97312.0,97311.0,0.10837323]
[1735854940962,0.0876855,97312.0,97311.0,0.00438691]
[1735854941115,0.3424095,97312.0,97311.0,0.00438691]
[1735854941288,0.3424095,97312.0,97311.0,0.001171]
[1735854941289,0.34753077,97312.0,97311.0,0.001171]
[1735854942319,0.34353077,97312.0,97311.0,0.001171]
[1735854942712,0.34253077,97312.0,97311.0,0.000171]
[1735854943240,0.34753077,97312.0,97311.0,0.001171]
[1735854943490,0.34453077,97312.0,97311.0,0.000171]
[1735854943863,0.35353077,97312.0,97311.0,0.001171]
[1735854944438,0.35501062,97312.0,97311.0,0.000171]
[1735854945393,0.35001062,97312.0,97311.0,0.000171]
[1735854945549,0.35401062,97312.0,97311.0,0.000171]
[1735854945947,0.36101062,97312.0,97311.0,0.001171]
[1735854946155,0.50001062,97312.0,97311.0,0.000171]
[1735854946356,0.50401062,97312.0,97311.0,0.000171]
[1735854946554,0.51201062,97312.0,97311.0,0.001171]
[1735854948960,0.73899694,97312.0,97311.0,0.001171]
[1735854949723,0.72699694,97312.0,97311.0,0.000171]
[1735854950119,0.72699694,97312.0,97311.0,0.007171]
[1735854950317,0.72699694,97312.0,97311.0,0.002171]
[1735854950780,0.72799694,97312.0,97311.0,0.011171]
[1735854951454,0.72799694,97312.0,97311.0,0.009171]
[1735854951680,0.72899694,97312.0,97311.0,0.015171]
[1735854954018,0.72799694,97312.0,97311.0,0.006171]
[1735854954221,0.72899694,97312.0,97311.0,0.008171]
[1735854954397,0.72799694,97312.0,97311.0,0.002171]
[1735854955227,0.72899694,97312.0,97311.0,0.005171]
[1735854955999,0.72699694,97312.0,97311.0,0.000171]
[1735854956304,0.72799694,97312.0,97311.0,0.009171]
[1735854956507,0.72899694,97312.0,97311.0,0.012171]
[1735854958176,0.72799694,97312.0,97311.0,0.009171]
[1735854958703,0.72799694,97312.0,97311.0,0.006171]
[1735854958898,0.72799694,97312.0,97311.0,0.009171]
[1735854959104,0.72699694,97312.0,97311.0,0.000171]
[1735854959302,0.72799694,97312.0,97311.0,0.006171]
[1735854959506,0.72899694,97312.0,97311.0,0.015171]
[1735854959738,0.7289433,97312.0,97311.0,0.015171]
[1735854961893,0.7269433,97312.0,97311.0,0.000171]
[1735854962098,0.7269433,97312.0,97311.0,0.006171]
[1735854962358,0.7289433,97312.0,97311.0,0.015171]
[1735854964154,0.72888961,97312.0,97311.0,0.015171]
[1735854971931,0.72888961,97312.0,97311.0,0.033071]
[1735854972339,0.72897511,97312.0,97311.0,0.033071]
[1735854985241,0.72893496,97312.0,97311.0,0.033071]
[1735854987142,0.91400734,97312.0,97311.0,0.033071]
[1735854988540,0.72893496,97312.0,97311.0,0.033071]
[1735854990291,0.96027543,97312.0,97311.0,0.033071]
[1735854991282,0.72893496,97312.0,97311.0,0.033071]
[1735855007366,1.00674599,97312.0,97311.0,0.02762619]
[1735855008340,0.72893496,97312.0,97311.0,0.02762619]
[1735855013224,1.0067538,97312.0,97311.0,0.02762619]
[1735855013616,1.0067538,97312.0,97280.0,0.0001708]
[1735855013617,0.355564,97293.0,97284.0,0.0824]
[1735855013825,0.355564,97293.0,97280.0,0.0001708]
[1735855014026,0.36054368,97293.0,97280.0,0.0001708]
[1735855014806,0.36054368,97293.0,97292.0,0.0091708]
[1735855014807,0.48454368,97293.0,97292.0,0.0091708]
[1735855015106,0.48454368,97293.0,97292.0,0.0001708]
[1735855015316,0.58853,97293.0,97292.0,0.0001708]
[1735855015520,0.58953,97293.0,97292.0,0.0091708]
[1735855015733,0.66903,97293.0,97292.0,0.0091708]
[1735855016170,0.67003,97293.0,97292.0,0.0091708]
[1735855016727,0.91077753,97293.0,97292.0,0.0091708]
[1735855016941,0.91177753,97293.0,97292.0,0.0091708]
[1735855017056,0.9299962,97293.0,97292.0,0.0001708]
[1735855017506,0.69957939,97293.0,97292.0,0.0001708]
[1735855019956,0.69957939,97293.0,97292.0,8e-07]
[1735855019957,0.79957939,97293.0,97292.0,8e-07]
[1735855021172,0.79757939,97293.0,97292.0,8e-07]
[1735855021422,0.79857939,97293.0,97292.0,8e-07]
[1735855021599,0.79957939,97293.0,97292.0,8e-07]
[1735855025067,1.0304803,97293.0,97292.0,8e-07]
[1735855026221,0.79957939,97293.0,97292.0,8e-07]
[1735855026416,0.69957939,97293.0,97292.0,8e-07]
[1735855026624,0.79957939,97293.0,97292.0,8e-07]
[1735855027269,1.0304803,97293.0,97292.0,8e-07]
[1735855028455,0.79957939,97293.0,97292.0,8e-07]
[1735855029508,0.93806609,97293.0,97292.0,8e-07]
[1735855029906,0.93815159,97293.0,97292.0,8e-07]
[1735855030282,0.79966489,97293.0,97292.0,8e-07]
[1735855032314,0.69966489,97293.0,97292.0,8e-07]
[1735855033527,0.7919911,97293.0,97292.0,8e-07]
[1735855034327,0.69966489,97293.0,97292.0,8e-07]
[1735855036062,0.79198861,97293.0,97292.0,8e-07]
[1735855037169,0.69966489,97293.0,97292.0,8e-07]
[1735855049162,0.88431382,97293.0,97292.0,8e-07]
[1735855051445,0.5778275,97293.0,97292.0,8e-07]
[1735855052824,0.5768275,97293.0,97292.0,8e-07]
[1735855053023,0.39217857,97293.0,97292.0,8e-07]
[1735855053239,0.39317857,97293.0,97292.0,8e-07]
[1735855053432,0.39217857,97293.0,97292.0,8e-07]
[1735855053656,0.39117857,97293.0,97292.0,8e-07]
[1735855053832,0.39217857,97293.0,97292.0,8e-07]
[1735855054234,0.39317857,97293.0,97292.0,0.0060008]
[1735855054681,0.39217857,97293.0,97292.0,8e-07]
[1735855055110,0.39317857,97293.0,97292.0,0.0070008]
[1735855057435,0.48551679,97293.0,97292.0,0.0070008]
[1735855058128,0.60851679,97293.0,97292.0,0.0070008]
[1735855058537,0.1,97291.0,97280.0,0.0001708]
[1735855058704,0.25,97281.0,97280.0,0.0001708]
[1735855058901,0.25537089,97281.0,97280.0,0.0001708]
[1735855059756,0.26437089,97281.0,97280.0,0.0011708]
[1735855059958,0.26437089,97281.0,97280.0,0.00121991]
[1735855060662,0.26937089,97281.0,97280.0,0.00221991]
[1735855061554,0.36180985,97281.0,97280.0,0.00221991]
[1735855064671,0.37228599,97281.0,97280.0,0.00221991]
[1735855068441,0.27984703,97281.0,97280.0,0.00221991]
[1735855074158,0.37235084,97281.0,97280.0,0.00221991]
[1735855075271,0.27984703,97281.0,97280.0,0.00221991]
[1735855077032,0.17984703,97281.0,97280.0,0.00221991]
[1735855101534,0.31860211,97281.0,97280.0,0.00221991]
[1735855102167,0.17984703,97281.0,97280.0,0.00221991]
[1735855105187,0.17979349,97281.0,97261.0,0.07519071]
[1735855105395,0.20563,97262.0,97261.0,0.07523983]
[1735855105936,0.21114991,97262.0,97261.0,0.07523983]
[1735855108095,0.36914991,97262.0,97261.0,0.07623983]
[1735855108546,0.3775421,97262.0,97261.0,0.07623983]
[1735855108744,0.3825421,97262.0,97261.0,0.07623983]
[1735855109952,0.3825421,97262.0,97261.0,0.00104912]
[1735855111963,0.3825421,97262.0,97261.0,0.00122012]
[1735855122437,0.3825421,97262.0,97261.0,0.12592012]
[1735855123072,0.3826276,97262.0,97261.0,0.12592012]
[1735855129910,0.16660541,97262.0,97261.0,0.22990644]
[1735855130136,0.01660541,97262.0,97261.0,0.22990644]
[1735855130526,0.0110855,97262.0,97261.0,0.22990644]
[1735855130725,0.1560855,97262.0,97261.0,0.22990644]
[1735855130898,0.1500855,97262.0,97261.0,0.22890644]
[1735855131103,0.16058539,97262.0,97261.0,0.22890644]
[1735855131554,0.15858539,97262.0,97261.0,0.22890644]
[1735855131775,0.15758539,97262.0,97261.0,0.2321244]
[1735855133073,0.15758539,97262.0,97261.0,0.22890644]
[1735855133537,0.16058539,97262.0,97261.0,0.57077145]
[1735855134268,0.16058539,97262.0,97261.0,0.70967936]
[1735855134808,0.16058539,97262.0,97261.0,0.71289713]
[1735855135210,0.01058539,97262.0,97261.0,0.23212421]
[1735855136126,0.01058539,97262.0,97261.0,0.41730006]
[1735855136507,0.01058539,97262.0,97261.0,1.91730006]
[1735855137101,0.0050855,97262.0,97261.0,2.21274401]
[1735855137934,0.0050855,97262.0,97261.0,2.07387418]
[1735855138748,0.0050855,97262.0,97261.0,0.57387418]
[1735855138903,0.0050855,97262.0,97261.0,0.75905003]
[1735855139106,0.01085166,97262.0,97261.0,0.75905003]
[1735855139374,0.0050855,97262.0,97261.0,0.75905003]
[1735855139529,0.01085166,97262.0,97261.0,0.75905003]
[1735855139734,0.0050855,97262.0,97261.0,0.75905003]
[1735855139930,0.01085166,97262.0,97261.0,0.75905003]
[1735855140286,0.0050855,97262.0,97261.0,0.57387418]
[1735855140523,0.01085166,97262.0,97261.0,0.57387418]
[1735855140659,0.0050855,97262.0,97261.0,0.57387418]
[1735855142059,0.0050855,97262.0,97261.0,0.71268628]
[1735855143219,0.0050855,97262.0,97261.0,2.21268628]
[1735855143424,0.0050855,97262.0,97261.0,1.73212421]
[1735855145059,0.0050855,97262.0,97261.0,1.87093631]
[1735855146714,0.0050855,97262.0,97261.0,2.21244281]
[1735855147642,0.0050855,97262.0,97261.0,1.87093631]
[1735855148264,0.0050855,97262.0,97261.0,1.73212421]
[1735855149329,0.0050855,97262.0,97261.0,1.82463045]
[1735855152557,0.0050855,97262.0,97261.0,0.32463045]
[1735855152968,0.01085909,97262.0,97261.0,1.82463045]
[1735855153214,0.0050855,97262.0,97261.0,1.82463045]
[1735855153694,0.0050855,97262.0,97261.0,1.73212421]
[1735855155402,0.0050855,97262.0,97261.0,1.72890644]
[1735855155579,0.0050855,97262.0,97261.0,1.73212405]
[1735855155954,0.0050855,97262.0,97261.0,1.68452405]
[1735855156159,0.0050855,97262.0,97261.0,1.77701726]
[1735855157390,0.0050855,97262.0,97261.0,0.27701726]
[1735855157796,0.01085909,97262.0,97261.0,0.27701726]
[1735855158002,0.0050855,97262.0,97261.0,0.27701726]
[1735855158210,0.01085909,97262.0,97261.0,0.18452405]
[1735855158407,0.0050855,97262.0,97261.0,0.18452405]
[1735855160849,0.0050855,97262.0,97261.0,0.66475741]
[1735855162003,0.0050855,97262.0,97261.0,0.71175741]
[1735855162178,0.0050855,97262.0,97261.0,2.21175741]
[1735855162678,0.0050855,97262.0,97261.0,2.24388461]
[1735855162939,0.0020855,97262.0,97261.0,2.10507251]
[1735855163136,8.55e-05,97262.0,97261.0,2.10507251]
[1735855163607,0.0010855,97262.0,97261.0,2.10607251]
[1735855163790,8.55e-05,97262.0,97261.0,2.10507251]
[1735855163931,0.0010855,97262.0,97261.0,2.10607251]
[1735855164343,0.0010855,97262.0,97261.0,2.20607251]
[1735855168643,0.0010855,97262.0,97261.0,2.17394531]
[1735855168850,0.0010855,97262.0,97261.0,2.1844648]
[1735855169266,0.0010855,97262.0,97261.0,2.17394531]
[1735855169646,0.0010855,97262.0,97261.0,2.12694531]
[1735855171680,0.0010855,97262.0,97261.0,2.35803315]
[1735855173630,0.0010855,97262.0,97261.0,2.18093315]
[1735855175005,0.0010855,97262.0,97261.0,1.94984531]
[1735855175793,0.0790855,97262.0,97261.0,0.44984531]
[1735855175982,0.0790855,97262.0,97261.0,0.68093315]
[1735855176387,0.08396284,97262.0,97261.0,0.68093315]
[1735855177143,0.08396284,97262.0,97261.0,0.20093341]
[1735855178017,0.08396284,97262.0,97261.0,0.10842405]
[1735855178456,0.08296284,97262.0,97261.0,0.10742405]
[1735855178832,0.08396284,97262.0,97261.0,0.10520644]
[1735855179032,0.08296284,97262.0,97261.0,0.10420644]
[1735855179800,0.08296284,97262.0,97261.0,0.10520644]
[1735855180010,0.08296284,97262.0,97261.0,0.10420644]
[1735855180453,0.08296284,97262.0,97261.0,0.10520644]
[1735855180792,0.08496284,97262.0,97261.0,0.10520644]
[1735855182109,0.08296284,97262.0,97261.0,0.10420644]
[1735855182331,0.08396284,97262.0,97261.0,0.10420644]
[1735855182508,0.08596284,97262.0,97261.0,0.10420644]
[1735855182892,0.08396284,97262.0,97261.0,0.10420644]
[1735855183355,0.08596284,97262.0,97261.0,0.10420644]
[1735855183752,0.08396284,97262.0,97261.0,0.10420644]
[1735855184564,0.08596284,97262.0,97261.0,0.10420644]
[1735855184935,0.08696284,97262.0,97261.0,0.10420644]
[1735855186290,0.00496284,97262.0,97261.0,0.10420644]
[1735855186491,0.00696284,97262.0,97261.0,0.10520644]
[1735855186695,0.00696284,97262.0,97261.0,1.60520644]
[1735855186946,0.0020855,97262.0,97261.0,1.60520644]
[1735855187123,0.0020855,97262.0,97261.0,1.608424]
[1735855187322,8.55e-05,97262.0,97261.0,1.608424]
[1735855187520,0.0020855,97262.0,97261.0,1.608424]
[1735855188144,8.55e-05,97262.0,97261.0,0.107424]
[1735855188343,0.0020855,97262.0,97261.0,0.107424]
[1735855188545,0.00494531,97262.0,97261.0,0.19993336]
[1735855188727,8.55e-05,97262.0,97261.0,0.19993336]
[1735855188907,0.00494537,97262.0,97261.0,0.20093336]
[1735855189534,0.00694537,97262.0,97261.0,0.108424]
[1735855190811,0.00694537,97262.0,97261.0,0.10520644]
[1735855192240,0.00694537,97262.0,97261.0,0.10842418]
[1735855193245,0.00694537,97262.0,97261.0,0.10520644]
[1735855195530,0.00689189,97262.0,97261.0,0.10520644]
[1735855203894,0.00689189,97262.0,97261.0,0.10842437]
[1735855204106,0.28789189,97262.0,97261.0,0.00443805]
[1735855204758,0.30897773,97262.0,97261.0,1.2e-07]
[1735855204965,0.53596405,97262.0,97261.0,1.2e-07]
[1735855205612,0.479455,97250.0,97249.0,0.07194336]
[1735855205869,0.479455,97250.0,97249.0,0.07199249]
[1735855206690,0.479455,97250.0,97249.0,4.913e-05]
[1735855207863,0.488455,97250.0,97249.0,4.913e-05]
[1735855208109,0.480455,97250.0,97249.0,4.913e-05]
[1735855208345,0.480455,97250.0,97210.0,1.5]
[1735855208346,0.0764,97222.0,97202.0,0.000171]
[1735855208560,0.205747,97207.0,97204.0,0.10398632]
[1735855209310,0.205747,97207.0,97205.0,1.5]
[1735855209503,0.205747,97207.0,97206.0,0.10398632]
[1735855210250,0.206747,97207.0,97206.0,0.10398632]
[1735855210880,0.205747,97207.0,97206.0,0.10398632]
[1735855211090,0.206747,97207.0,97206.0,0.10398632]
[1735855213011,0.001,97207.0,97206.0,0.10398632]
[1735855214085,0.001,97207.0,97206.0,1.60398632]
[1735855216378,0.001,97207.0,97206.0,1.60407182]
[1735855220093,0.00590354,97207.0,97206.0,1.60407182]
[1735855220295,0.001,97207.0,97206.0,1.60407182]
[1735855220505,0.00590354,97207.0,97206.0,0.10407182]
[1735855220711,0.001,97207.0,97206.0,0.10407182]
[1735855220911,0.00590354,97207.0,97206.0,1.60407182]
[1735855221106,0.001,97207.0,97206.0,1.60407182]
[1735855222114,0.001,97207.0,97206.0,0.10407182]
[1735855222498,0.00589506,97207.0,97206.0,0.10407182]
[1735855222701,0.001,97207.0,97206.0,0.10407182]
[1735855222878,0.00589506,97207.0,97206.0,0.10407182]
[1735855223074,0.001,97207.0,97206.0,0.10407182]
[1735855223277,0.00589506,97207.0,97206.0,0.10407182]
[1735855223542,0.001,97207.0,97206.0,0.10407182]
[1735855223751,0.00589506,97207.0,97206.0,0.10407182]
[1735855223938,0.001,97207.0,97206.0,0.10407182]
[1735855225133,0.205746,97207.0,97206.0,0.10407182]
[1735855225452,0.208746,97207.0,97206.0,0.10407182]
[1735855225953,0.205746,97207.0,97206.0,0.10407182]
[1735855226154,0.207746,97207.0,97206.0,0.10407182]
[1735855226770,0.205746,97207.0,97206.0,0.10407182]
[1735855226970,0.208746,97207.0,97206.0,0.10407182]
[1735855227491,0.205746,97207.0,97206.0,0.10407182]
[1735855227686,0.208746,97207.0,97206.0,0.10407182]
[1735855228059,0.211746,97207.0,97206.0,0.10407182]
[1735855233986,0.361746,97207.0,97206.0,8.55e-05]
[1735855234604,0.436946,97207.0,97206.0,8.55e-05]
[1735855234951,0.430946,97207.0,97206.0,8.55e-05]
[1735855235152,0.439946,97207.0,97206.0,8.55e-05]
[1735855235496,0.436946,97207.0,97206.0,8.55e-05]
[1735855236146,0.437946,97207.0,97206.0,8.55e-05]
[1735855236489,0.439946,97207.0,97206.0,8.55e-05]
[1735855236922,0.445946,97207.0,97206.0,8.55e-05]
[1735855237709,0.436946,97207.0,97206.0,8.55e-05]
[1735855237911,0.445946,97207.0,97206.0,8.55e-05]
[1735855238652,0.453946,97207.0,97206.0,8.55e-05]
[1735855239101,0.447946,97207.0,97206.0,8.55e-05]
[1735855239457,0.453946,97207.0,97206.0,8.55e-05]
[1735855267647,0.228746,97207.0,97206.0,8.55e-05]
[1735855267830,0.228746,97207.0,97206.0,0.10407182]
[1735855268268,0.228746,97207.0,97206.0,1.60407182]
[1735855268476,0.378746,97207.0,97206.0,1.60407182]
[1735855268682,0.378746,97207.0,97206.0,0.10729147]
[1735855268935,0.355746,97207.0,97206.0,0.10729147]
[1735855269292,0.366746,97207.0,97206.0,0.10729147]
[1735855270306,0.366746,97207.0,97206.0,0.10407182]
[1735855274466,0.011,97207.0,97206.0,0.14967182]
[1735855274665,0.011,97207.0,97206.0,0.22717182]
[1735855275108,0.011,97207.0,97206.0,0.23039132]
[1735855275449,0.000171,97210.0,97206.0,0.23039132]
[1735855275649,0.000171,97210.0,97207.0,0.10398632]
[1735855276070,0.000171,97210.0,97208.0,0.0032195]
[1735855276279,0.000171,97210.0,97209.0,0.10398632]
[1735855276854,0.000171,97210.0,97209.0,0.10720582]
[1735855277456,0.002171,97210.0,97209.0,0.10720582]
[1735855277874,0.000171,97210.0,97209.0,0.10720582]
[1735855278115,0.000171,97210.0,97209.0,0.10920582]
[1735855278311,0.001171,97210.0,97209.0,0.10920582]
[1735855280205,0.001171,97210.0,97209.0,0.10598632]
[1735855285851,0.001171,97210.0,97209.0,0.10607182]
[1735855298178,0.001171,97210.0,97209.0,0.10929142]
[1735855298933,0.02187222,97210.0,97209.0,0.10929142]
[1735855300205,0.02187222,97210.0,97209.0,0.10607182]
[1735855302621,0.02187222,97210.0,97209.0,0.0020855]
[1735855302833,0.10337222,97210.0,97209.0,0.0020855]
[1735855302988,0.25337222,97210.0,97209.0,0.0020855]
[1735855303411,0.25337222,97210.0,97209.0,8.55e-05]
[1735855303821,0.26037222,97210.0,97209.0,8.55e-05]
[1735855304029,0.25937222,97210.0,97209.0,8.55e-05]
[1735855304354,0.25930323,97210.0,97209.0,8.55e-05]
[1735855304562,0.25230323,97210.0,97209.0,8.55e-05]
[1735855304919,0.25930323,97210.0,97209.0,8.55e-05]
[1735855305331,0.26430323,97210.0,97209.0,8.55e-05]
[1735855305874,0.25930323,97210.0,97209.0,8.55e-05]
[1735855306085,0.26430323,97210.0,97209.0,8.55e-05]
[1735855307155,0.2744641,97210.0,97209.0,8.55e-05]
[1735855312913,0.26430323,97210.0,97209.0,8.55e-05]
[1735855323833,0.24360201,97210.0,97209.0,8.55e-05]
[1735855353712,0.29080201,97210.0,97209.0,8.55e-05]
[1735855356718,0.28580201,97210.0,97209.0,8.55e-05]
[1735855356959,0.27880201,97210.0,97209.0,8.55e-05]
[1735855357125,0.41827827,97210.0,97209.0,0.0030855]
[1735855357321,0.41827827,97210.0,97209.0,0.0010855]
[1735855357501,0.41727827,97210.0,97209.0,0.0010855]
[1735855357703,0.41727827,97210.0,97209.0,0.0030855]
[1735855358270,0.27880201,97210.0,97209.0,0.0030855]
[1735855359065,0.27880201,97210.0,97209.0,0.0020855]
[1735855359246,0.27980201,97210.0,97209.0,0.0030855]
[1735855359616,0.27880201,97210.0,97209.0,8.55e-05]
[1735855359811,0.28780201,97210.0,97209.0,8.55e-05]
[1735855360019,0.29480201,97210.0,97209.0,8.55e-05]
[1735855361169,0.47980879,97210.0,97209.0,8.55e-05]
[1735855363315,0.29480201,97210.0,97209.0,8.55e-05]
[1735855364045,0.38731737,97210.0,97209.0,8.55e-05]
[1735855364814,0.29480201,97210.0,97209.0,8.55e-05]
[1735855365414,0.39878833,97210.0,97209.0,8.55e-05]
[1735855365598,0.49878833,97210.0,97209.0,8.55e-05]
[1735855366012,0.29480201,97210.0,97209.0,8.55e-05]
[1735855370530,0.38728485,97210.0,97209.0,8.55e-05]
[1735855373983,0.29480201,97210.0,97209.0,8.55e-05]
[1735855377697,0.21330201,97210.0,97209.0,8.55e-05]
[1735855377896,0.16610201,97210.0,97209.0,8.55e-05]
[1735855380682,0.01610201,97210.0,97209.0,0.17267182]